Cogmind - Beta 14 @@@ ROGUE MODE // 2024.09.30 @ 09:06:57 Player: Komeiji O. Result: Destroyed by S-10 Pest with Light Assault Rifle Performance ------------- Evolutions (0) 0 Regions Visited (2) 400 Robots Destroyed (27) 135 Value Destroyed (648) 648 Prototype IDs (0) 0 Alien Tech Used (0) 0 Bonus (0) 0 TOTAL SCORE: 1183 Bonus ------- None Cogmind --------- Core Integrity 0/250 Matter 289/300 Energy 125/125 System Corruption 2% Temperature Cool (0) Movement Treading (240) Ox1 Location -10/Mines Parts ------- > --- POWER (1) -------- Light Ion Engine > --- PROPULSION (2) --- Light Treads > --- UTILITY (2) ------ Large Storage Unit Improved Targeting Computer > --- WEAPON (2) ------- Small Laser > --- INVENTORY (15) --- Ion Engine Flight Unit Flight Unit Flight Unit Heat Sink Medium Matter Pod (100) Structural Scanner Sensor Array Sensor Array Signal Interpreter Improved Targeting Computer Rocket Launcher Rocket Launcher Datajack Peak State ------------ > --- POWER ------------ Ion Engine > --- PROPULSION ------- Light Treads Light Treads > --- UTILITY ---------- Small Storage Unit Visual Processing Unit > --- WEAPON ----------- Shotgun Shotgun > --- INVENTORY -------- Ion Engine Wheel Compact Wheel Flight Unit Flight Unit Flight Unit Shotgun Shotgun [Rating: 11] Favorites ----------- Power Ion Engine Engine Ion Engine Propulsion Light Treads Treads Light Treads Utility Improved Targeting Computer Storage Large Storage Unit Processor Improved Targeting Computer Weapon Shotgun Energy Gun Particle Gun Ballistic Gun Shotgun Special Weapon Mining Laser Build | -11 -10 -10 ------- Run | Yrd Mat Min Slots Evolved . | . . . Power . | . . . Propulsion . | . . . Utility . | . . . Weapon . | . . . Parts Attached 23 | 6 16 1 Power 4 | 1 2 1 Engine 4 | 1 2 1 Core . | . . . Reactor . | . . . Propulsion 4 | 2 2 . Treads 4 | 2 2 . Leg . | . . . Wheel . | . . . Hover . | . . . Flight . | . . . Utility 4 | 1 3 . Device . | . . . Storage 2 | 1 1 . Processor 2 | . 2 . Hackware . | . . . Protection . | . . . Artifact . | . . . Weapon 11 | 2 9 . Energy Gun 7 | 2 5 . Energy Cannon . | . . . Ballistic Gun 3 | . 3 . Ballistic Cannon . | . . . Launcher . | . . . Special Weapon 1 | . 1 . Impact Weapon . | . . . Slashing Weapon . | . . . Piercing Weapon . | . . . Special Melee Weapon . | . . . Unidentified Prototypes . | . . . Parts Lost 4 | . 2 2 Power . | . . . Propulsion 1 | . . 1 Utility . | . . . Weapon 3 | . 2 1 Highest Loss Streak 1 | . 1 1 To Critical Strikes . | . . . Average Slot Usage (%) 95 | . 98 88 Engine 14 | . 14 14 Treads 24 | . 27 17 Storage 14 | . 14 14 Processor 13 | . 13 14 Energy Gun 14 | . 15 14 Ballistic Gun 9 | . 12 . Special Weapon 3 | . . 13 Peak Build Rating 11 | 6 11 9 Average Rating 9 | 4 10 8 On Entrance 5 | . 6 9 Naked Turns . | . . . Heaviest Build 31 | 13 31 27 Greatest Support 40 | 40 40 40 Greatest Overweight (x) 1 | 1 1 1 Average Overweight (x) . | . . . Largest Inventory Capacity 15 | 8 15 15 Average Capacity 13 | 6 13 15 Most Carried 15 | 6 15 14 Average Carried 12 | 4 11 14 Final Capacity 15 | 8 15 15 Final Carried 14 | 6 14 14 Class Distribution -------------------- 100% | Mutant Dominant Class ---------------- Mutant | -10/Materials Mutant | -10/Mines Resources | -11 -10 -10 ----------- Run | Yrd Mat Min Matter Collected 688 | 168 494 26 Remotely . | . . . Salvage Created 749 | . 677 72 Parts 53 | . 45 8 Haulers Intercepted . | . . . Recyclers Shooed . | . . . Parts Field Recycled . | . . . Retrieved Matter . | . . . Parts Self-Destructed . | . . . Prevented . | . . . Kills | -11 -10 -10 ------- Run | Yrd Mat Min Combat Hostiles Destroyed 21 | . 17 4 Guns 20 | . 16 4 AOE 1 | . 1 . Classes Destroyed 5 | . 5 . Worker 2 | . 2 . Operator 1 | . 1 . Watcher 3 | . 3 . Swarmer 7 | . 3 4 Grunt 14 | . 14 . Best Kill Streak 3 | . 3 3 Combat Bots Only 3 | . 3 3 Max Kills in Single Turn 2 | . 2 1 Gunslinging . | . . . Exploded 1 | . 1 . Melee . | . . . Uniques/NPCs Destroyed . | . . . Combat | -11 -10 -10 -------- Run | Yrd Mat Min Hostile Shots Fired 133 | . 108 25 Missed 37 | . 29 8 Damage Taken 1022 | . 884 138 Core 257 | . 200 57 Absorbed by Shields . | . . . Regen/Repaired (Parts) 99 | . 99 . Core Remaining (%) 100 | 100 . . Volleys Fired 69 | . 60 9 Largest 2 | . 2 1 Hottest 130 | . 130 40 Shots Fired 122 | . 113 9 Gun 122 | . 113 9 Cannon . | . . . Launcher . | . . . Special . | . . . Kinetic 41 | . 41 . Thermal 51 | . 42 9 Explosive . | . . . Electromagnetic 30 | . 30 . Robot Hit Streak 7 | . 7 2 Robot Miss Streak 5 | . 5 3 Penetration Max . | . . . Secondary Targets 1 | . 1 . Max Gunslinging Chain 1 | . 1 . Shots Hit Robots 73 | . 69 4 Core Hits 40 | . 36 4 Critical Kills . | . . . Critical Parts Destroyed . | . . . Critical Strikes 1 | . 1 . Burn 1 | . 1 . Melee Attacks . | . . . Impact . | . . . Slashing . | . . . Piercing . | . . . Sneak Attacks . | . . . Combat Hostiles . | . . . Follow-up Attacks . | . . . Damage Inflicted 1211 | . 1164 47 Guns 1104 | . 1057 47 Cannons . | . . . Explosions 107 | . 107 . Melee . | . . . Ramming . | . . . Kinetic 460 | . 460 . Thermal 536 | . 489 47 Explosive . | . . . Electromagnetic 215 | . 215 . Impact . | . . . Slashing . | . . . Piercing . | . . . Highest Corruption 2 | . 2 2 Average Corruption 2 | . 2 2 Corruption Purged . | . . . Corruption Blocked . | . . . Effects 17 | . 8 9 Message Errors 5 | . 2 3 Matter Fused 5 | . 2 3 Heat Flow Errors 3 | . 2 1 Energy Discharges 3 | . 2 1 Data Loss (minor) 1 | . . 1 Overload Shots . | . . . Overflow Damage . | . . . Projectiles . | . . . Explosions . | . . . Melee . | . . . Knockbacks . | . . . Impact . | . . . Kinetic . | . . . Secondary . | . . . Self-Inflicted Damage . | . . . Shots . | . . . Rammed . | . . . Targets Rammed . | . . . Kicked . | . . . Crushed . | . . . Highest Temperature 483 | . 483 206 Average Temperature 157 | . 159 107 Received Heat Transfer 441 | . 441 . Effects 7 | . 7 . Shutdowns 2 | . 2 . Energy Bleed 2 | . 2 . Interference 1 | . 1 . Short Circuit 1 | . 1 . Damage (minor) 1 | . 1 . Siege Activations . | . . . Robots Corrupted . | . . . Combat Hostiles . | . . . Parts Fried . | . . . Impact Corruptions . | . . . Robots Melted . | . . . Combat Hostiles . | . . . Parts Melted 3 | . 3 . Heat Transferred 1199 | . 1099 100 Parts Sabotaged . | . . . Parts Stolen . | . . . Parts Stripped . | . . . Power Chain Reactions 1 | . 1 . Alert | -11 -10 -10 ------- Run | Yrd Mat Min Peak Influence 336 | . 336 84 Initial 24 | . . 24 Average 83 | . 101 45 Maximum Alert Level 1 | . 1 . Low Security (%) 93 | 100 91 100 Level 1 6 | . 8 . Level 2 . | . . . Level 3 . | . . . Level 4 . | . . . Level 5 . | . . . High Security . | . . . Max Security . | . . . Squads Dispatched 6 | . 6 . Investigation 3 | . 3 . Extermination . | . . . Reinforcement 3 | . 3 . Assault . | . . . Garrison . | . . . Intercept . | . . . Searches Triggered . | . . . Construction Impeded . | . . . Haulers Reinforced . | . . . Active Scanning Responses . | . . . Cargo Convoy Interrupts . | . . . Stealth | -11 -10 -10 --------- Run | Yrd Mat Min Distress Signals 3 | . 3 . Communications Jammed . | . . . Distress Signals . | . . . Times Spotted 32 | . 26 6 Peak Tracking Total 4 | . 4 3 Tactical Retreats . | . . . Traps | -11 -10 -10 ------- Run | Yrd Mat Min Traps Triggered 3 | . 3 . Indirectly . | . . . Trap Hack Attempts . | . . . Triggered . | . . . Disarmed . | . . . Reprogrammed . | . . . Reused . | . . . Traps Extracted . | . . . Installed . | . . . Triggered . | . . . Machines | -11 -10 -10 ---------- Run | Yrd Mat Min Machines Disabled 1 | . 1 . Max in Single Turn 1 | . 1 . Machines Repaired . | . . . Machines Dismantled . | . . . Machines Sabotaged . | . . . Overloaded Fab Kills . | . . . Hacking | -11 -10 -10 --------- Run | Yrd Mat Min Machines Accessed 4 | . 3 1 Terminals 3 | . 2 1 Fabricators . | . . . Repair Stations 1 | . 1 . Recycling Units . | . . . Scanalyzers . | . . . Garrison Access . | . . . Total Hacks 8 | . 7 1 Successful 5 | . 4 1 Failed 3 | . 3 . Catastrophic 2 | . 2 . Database Lockouts . | . . . Manual 3 | . 2 1 Terminals 3 | . 2 1 Fabricators . | . . . Repair Stations 5 | . 5 . Recycling Units . | . . . Scanalyzers . | . . . Garrison Access . | . . . Terminal Hacks 1 | . . 1 Maintenance Status 1 | . . 1 Fabricator Hacks . | . . . Repair Station Hacks 4 | . 4 . Scan Component 2 | . 2 . Repair 2 | . 2 . Recycling Unit Hacks . | . . . Scanalyzer . | . . . Garrison Access Hacks . | . . . Unauthorized Hacks . | . . . Terminals . | . . . Fabricators . | . . . Repair Stations . | . . . Recycling Units . | . . . Scanalyzers . | . . . Garrison Access . | . . . Data Cores Recovered . | . . . Used . | . . . Hacking Detections 2 | . 2 . Full Trace Events 1 | . 1 . Feedback Events . | . . . Feedback Blocked . | . . . Robot Schematics Acquired . | . . . Robots Built . | . . . Authchips . | . . . Time . | . . . Total Robot Build Rating . | . . . Part Schematics Acquired . | . . . Parts Built . | . . . Authchips . | . . . Time . | . . . Total Part Build Rating . | . . . Parts Repaired 2 | . 2 . Time 62 | . 62 . Parts Recycled . | . . . Recycled Matter . | . . . Retrieved Matter . | . . . Retrieved Components . | . . . Parts Scanalyzed . | . . . Part Schematics Acquired . | . . . Parts Damaged . | . . . Bothacking | -11 -10 -10 ------------ Run | Yrd Mat Min Used RIF Installer . | . . . Robots Hacked . | . . . Non-combat . | . . . Combat . | . . . Robot Hacks Applied . | . . . Relay Couplers Released . | . . . Fabnet Peak Effective % . | . . . Robots Rewired . | . . . Allies Hacked . | . . . Hacks Repelled . | . . . Allies | -11 -10 -10 -------- Run | Yrd Mat Min Total Allies . | . . . Largest Group . | . . . Highest-Rated Group . | . . . Highest-Rated Ally . | . . . Total Orders . | . . . Ally Attacks . | . . . Total Damage . | . . . Kills . | . . . Allies Corrupted . | . . . Allies Melted . | . . . Intel | -11 -10 -10 ------- Run | Yrd Mat Min Robot Analysis Total . | . . . Derelict Logs Recovered 1 | . . 1 Drone Launches . | . . . Drone Recoveries . | . . . Exploration | -11 -10 -10 ------------- Run | Yrd Mat Min Turns Passed 2356 | 112 1695 549 Spaces Moved 1183 | 63 870 250 Core 4 | 4 . . Treads 1179 | 59 870 250 Legs . | . . . Wheels . | . . . Hover . | . . . Flight . | . . . Fastest Speed 50 | 50 160 160 Average Speed 174 | 155 165 211 Slowest Speed 240 | 160 240 240 Overloaded Moves . | . . . Propulsion Burnouts . | . . . Robots Hopped . | . . . Cave-ins Triggered . | . . . Exploration Rate (%) 37 | 4 70 38 Regions Visited 2 Branch Regions 1 Pre-discovered Areas 1 | . . 1 Known Exits Taken . | . . . Unknown Exits Taken 2 | 1 1 . Scrap Searched . | . . . Spaces Dug . | . . . Terrain Destroyed 4 | . 4 . Melee . | . . . Projectile . | . . . AOE 4 | . 4 . Terrain Rammed . | . . . Walls Destroyed . | . . . Machines Disabled . | . . . Actions | -11 -10 -10 --------- Run | Yrd Mat Min Total 1348 | 74 1014 260 Wait 33 | . 33 . Move 1181 | 62 869 250 Hop . | . . . Pick Up 26 | 6 20 . Fast Attach 10 | 6 4 . Attach 1 | . 1 . Detach . | . . . Swap 12 | . 11 1 Drop 16 | . 16 . Fire 69 | . 60 9 Melee . | . . . Ram . | . . . Kick . | . . . Crush . | . . . Escape Stasis . | . . . Rewire . | . . . Trap . | . . . Miscellaneous . | . . . Route ------- -11/Scrapyard -10/Materials (discovered 3 exits: [*Mat x2] / *Min) -10/Mines History --------- Turn | Location | Event 18 | -11/Scrapyard | Discovered new exit (range 15) 113 | -11/Scrapyard | Entered Materials 316 | -10/Materials | Build established: Mutant 476 | -10/Materials | Discovered new exit (range 16) 763 | -10/Materials | Discovered new exit (range 15) 927 | -10/Materials | Discovered new exit (range 15) 1276 | -10/Materials | Repaired Lgt. Treads 1535 | -10/Materials | Repaired Broken Lgt. Treads? 1537 | -10/Materials | Core integrity fell below 50% 1808 | -10/Materials | Entered Mines 1809 | -10/Mines | Learned location of Storage (-7) 1839 | -10/Mines | Learned Materials terminal intel 1953 | -10/Mines | Core integrity fell below 20% 2357 | -10/Mines | Destroyed by S-10 Pest with Light Assault Rifle Last Messages --------------- 01979_ R-06 Scavenger collects Flight Unit. 01990_ Acquired 11 matter. 02002_ System corrupted: Energy discharge (-36). 02022_ YOA9MLX48ZAJT T0#V|UFCLUYA0XR7 TNJ 02100_ SYOT/GJV/JQNDED>B/WV10 02128_ System corrupted: Matter fused (-10). 02148_ Connecting with Terminal... 02148_ Current location identified: Mines >>Enumerate(Maintenance) Found 14 registered maintenance bots. 5 Workers 2 Builders 5 Tunnelers 2 Recyclers Downloaded coordinate data. 02196_ System corrupted: Matter fused (-6). 02225_ K-01 Serf collects debris. 02318_ System corrupted: Heat flow error (+225). 02344_ Mining Laser destroyed. 02345_ S-10 Pest destroyed. Map ----- +----------------------------------------------------+ | ????# #?########## ## """ #?? | | ############## ### ### #?? | | #???????# #?## ##?? | | ### #???????##### #### #??## ##??? | | ??# #???????????# #??## #????###???? | | ?## #???????##### #???## ##??????????? | | ## #???##### ####?## ##??????????? | | # ##??# #??# #??????????? | | # #### ### ####### #?## #??????????? | | ## #?# #####?# ### ##?????????? | | ?## #####?# ### ## % ##????????? | | ??## ##?????# ## % ##???????? | | ???####??????## ##### #???????? | | ??????????????### #???## #???????? | | ????????????????## ##?#### ##???????? | | ?????????????????####??# ##????????? | | ???????????????????????# ## ##?????????? | | ?????????????#???????### ## ##??????????? | | ?????????##### ??????# #???????????? | | ????????? ?????# #### #????? | | ????????? ???# #??# #????? | | ???????????# ??# #??# ##????? | | ???????????# ## ##?## ###?????? | | ????????????# ###### ###???????? | | ?????????????# k r s ## ####??????? | | ?????????????## ### @s #???? | | ???????????????????# # ### ######## #???? | | ???????????????????# ####?# #????????????? | | ???????????????????# ?????# #????????????? | | ???????????????????# ?????# #????????????? | | ???????????????????#??????# #????????????? | | ?????????????????????????? ????????????? | | ?????????????????????????? ????????????? | | ?????????????????????????? ????????????? | | ?????????????????????????? ????????????? | | ??????????????????????????* ????????????? | | ??????????????????????????%=#????????????? | | ??????????????????????????[ ?????????????? | | ?????????????????????????? ?????????????? | | ?????????????????????????? ?????????????? | | ?????????????????????????? ?????????????? | | ?????????????????????????????????????????? | | ?????????????????????????????????????????? | | ?????????????????????????????????????????? | | ?????????????????????????????????????????? | | ?????????????????????????????????????????? | | ?????????????????????????????????????????? | | ?????????????????????????????????????????? | | ?????????????????????????????????????????? | | ?????????????????????????????????????????? | +----------------------------------------------------+ Best States ------------- Heat Dissipation 25 Energy Generation 10 Energy Capacity 250 Matter Stores 300 Matter Capacity 300 Sight Range 18 Terrain Scan Density 10 Evasion (%) 40 Targeting Accuracy 6 Recoil Reduction 2 Item Schematics ----------------- None Robot Schematics ------------------ None Fabricated ------------ Nothing Alien Tech Used ----------------- None Achievements -------------- None Challenges ------------ None Game ------ Seed ShadeVariableRail Manual? 0 Play Time 00:26:58 Cumulative 5.5 hours Start 2024.09.30 @ 08:40:10 End 2024.09.30 @ 09:06:57 Sessions 1 Manual Loads 0 Difficulty Rogue Special Mode None Game No. 7 Rogue 7 Adventurer 0 Explorer 0 Win Type - Total 0 Types 0/0/0/0/0/0/0/0/0 Lore% 0 Gallery% 9 Achievement% 9 Wizard Run 0 Options --------- Layout 0 ASCII 0 Keyboard 0 Movement Vi Keybinds 0 Fullscreen 2 Font 36/Terminus++ Map View 76x50 Zoom Use 0% Tactical HUD 1 Map Filters NONE Filters NONE Steam 0 RUN: 1e79971a-cc42-4519-8f96-9968d358f6bd